fUST/lending_fUST_20260112
["ID","MTS","AMOUNT","RATE_DAILY","PERIOD"]
[401398447,1768181439029,-500.0,0.00015806,2]
[401398448,1768181439039,-227.91231585,0.00015806,2]
[401398449,1768181439049,-500.0,0.00015806,2]
[401398450,1768181439059,-500.0,0.00015806,2]
[401398451,1768181439068,-500.0,0.00015806,2]
[401398452,1768181439078,-500.0,0.00015806,2]
[401398453,1768181439088,-500.0,0.00015806,2]
[401398454,1768181439097,-500.0,0.00015806,2]
[401398455,1768181439107,-500.0,0.00015806,2]
[401398456,1768181439116,-500.0,0.00015806,2]
[401398457,1768181439125,-151.0,0.00015806,2]
[401398458,1768181439135,-500.0,0.00015806,2]
[401398459,1768181439144,-151.0,0.00015806,2]
[401398460,1768181439154,-151.0,0.00015806,2]
[401398461,1768181439163,-151.0,0.00015806,2]
[401398462,1768181439173,-2487.15318209,0.00015806,2]
[401398463,1768181439182,-151.0,0.00015806,2]
[401398464,1768181439191,-151.0,0.00015806,2]
[401398465,1768181439200,-151.0,0.00015806,2]
[401398466,1768181439209,-151.0,0.00015806,2]
[401398467,1768181439218,-151.0,0.00015806,2]
[401398468,1768181439227,-151.0,0.00015806,2]
[401398469,1768181439241,-151.0,0.00015806,2]
[401398470,1768181439249,-151.0,0.00015806,2]
[401398471,1768181439258,-151.0,0.00015806,2]
[401398472,1768181439267,-285.8783137,0.00015806,2]
[401398473,1768181439276,-169.26659709,0.00015989,2]
[401398474,1768181439286,-553.02767324,0.00015989,2]
[401398475,1768181439295,-553.02767324,0.00015989,2]
[401398476,1768181439304,-553.02767324,0.00015989,2]
[401398477,1768181439312,-553.02767324,0.00015989,2]
[401398478,1768181439321,-553.02767324,0.00015989,2]
[401398479,1768181439330,-553.02767324,0.00015989,2]
[401398480,1768181439339,-536.77866777,0.00015989,2]
[401398481,1768181439349,-553.02767324,0.00015989,2]
[401398482,1768181439358,-553.02767324,0.00015989,2]
[401398483,1768181439368,-553.02767324,0.00015989,2]
[401398484,1768181439377,-553.02767324,0.00015989,2]
[401398485,1768181439386,-553.02767324,0.00015989,2]
[401398486,1768181439397,-553.02767324,0.00015989,2]
[401398487,1768181439406,-553.02767324,0.00015989,2]
[401398488,1768181439415,-553.02767324,0.00015989,2]
[401398489,1768181439425,-553.02767324,0.00015989,2]
[401398490,1768181439433,-553.02767324,0.00015989,2]
[401398491,1768181439443,-553.02767324,0.00015989,2]
[401398492,1768181439452,-553.02767324,0.00015989,2]
[401398493,1768181439461,-100000.0,0.0001599,2]
[401398494,1768181439470,-215.80455964,0.00016,2]
[401398495,1768181439480,-3000.0,0.00016012,2]
[401398496,1768181439489,-1600.0,0.00016164,2]
[401398497,1768181439498,-533.88981491,0.00016354,2]
[401398498,1768181439507,-2579.17784983,0.00016354,2]
[401398499,1768181439516,-500.0,0.00016438,2]
[401398500,1768181439526,-500.0,0.00016438,2]
[401398501,1768181439535,-500.0,0.00016438,2]
[401398502,1768181439544,-547.46017461,0.00016438,2]
[401398503,1768181439553,-5022.0,0.00016438,2]
[401398504,1768181439562,-184.2,0.0001644,2]
[401398505,1768181439571,-184.2,0.0001644,2]
[401398506,1768181439580,-184.2,0.0001644,2]
[401398507,1768181439589,-184.2,0.0001644,2]
[401398508,1768181439598,-200.0,0.00016473,2]
[401398509,1768181439607,-2642.48470631,0.0001656,2]
[401398510,1768181439616,-553.64373807,0.00016902,2]
[401398511,1768181439624,-2674.60743027,0.00016902,2]
[401398512,1768181439633,-88061.69714536,0.00017,2]
[401398513,1768181439644,-2400.0,0.0001726,2]
[401398514,1768181439653,-218.79056369,0.00017273,2]
[401398515,1768181439662,-864.0,0.0001736,2]
[401398516,1768181439671,-5000.0,0.00017412,2]
[401398517,1768181439682,-13182.10352108,0.00017426,2]
[401398518,1768181439692,-574.12855637,0.0001745,2]
[401398519,1768181439701,-2773.56790519,0.0001745,2]
[401398520,1768181439710,-2136.47349432,0.000176,2]
[401398521,1768181439719,-400.0,0.00017842,2]
[401398522,1768181439730,-595.37131296,0.00017998,2]
[401398523,1768181439739,-2876.18991768,0.00017998,2]
[401398524,1768181439748,-90190.63547425,0.00018,2]
[401398525,1768181439762,-71578.87619116,0.00018,2]
[401398526,1768181439771,-274.0,0.00018297,2]
[401398527,1768181439780,-152.48093155,0.00018371,2]
[401398528,1768181439789,-171.65605742,0.00018371,2]
[401398529,1768181439798,-156.0707333,0.00018371,2]
[401398530,1768181439807,-281.72736,0.00018493,2]
[401398531,1768181439816,-344.0,0.00018495,2]
[401398532,1768181439826,-617.40005154,0.00018546,2]
[401398533,1768181439835,-2982.60894464,0.00018546,2]
[401398534,1768181439844,-150.48214198,0.00018645,2]
[401398535,1768181439853,-405.0,0.00018713,2]
[401398536,1768181439863,-5000.0,0.00018863,2]
[401398537,1768181439872,-303.10001604,0.000189,2]
[401398538,1768181439881,-640.24385345,0.00019094,2]
[401398539,1768181439891,-3092.96547559,0.00019094,2]
[401398540,1768181439902,-1000.0,0.00019096,2]
[401398541,1768181439911,-3284.52,0.000192,2]
[401398542,1768181439921,-21477.24,0.000192,2]
[401398543,1768181439930,-247.7481383,0.00019273,2]
[401398544,1768181439939,-663.93287602,0.00019642,2]
[401398545,1768181439949,-3207.40519818,0.00019642,2]
[401398546,1768181439959,-17496.75723283,0.0002,2]
[401399001,1768181446857,-464.22051451,0.00013966,2]
[401399002,1768181459550,159.2158004,0.00030136,120]
[401399003,1768181459986,156.14402851,0.00030136,120]
[401399004,1768181493651,158.25969911,0.00030136,120]
[401399005,1768181510730,621.0630351,0.00030136,120]
[401399006,1768181514073,163.43737447,0.00030136,120]
[401399007,1768181516932,153.37739663,0.00030136,120]
[401399008,1768181520820,315.88533617,0.00030136,120]
[401399009,1768181531724,211.85705088,0.00030136,120]
[401399010,1768181533803,307.3298762,0.00030136,120]
[401399012,1768181546679,190.12491413,0.00030136,120]
[401399013,1768181558997,500.0,0.00030136,120]
[401399014,1768181559206,500.0,0.00030136,120]
[401399015,1768181559442,296.21843969,0.00030136,120]
[401399016,1768181568400,285.96030071,0.00030136,120]
[401399017,1768181571289,470.87777632,0.00030136,120]
[401399018,1768181579925,278.09826334,0.00030136,120]
[401399019,1768181594569,272.97052871,0.00030136,120]
[401399020,1768181594989,281.47756985,0.00030136,120]
[401399021,1768181598731,372.78936395,0.00030136,120]
[401399022,1768181611242,167.51793548,0.00030136,120]
[401399023,1768181623579,240.88617871,0.00030136,120]
[401399024,1768181626096,163.19064767,0.00030136,120]
[401399025,1768181630900,169.89884945,0.00030136,120]
[401399027,1768181650844,200.23730446,0.00030136,120]
[401399029,1768181724567,160.77017494,0.00030136,120]
[401399031,1768181836989,159.77278791,0.00030136,120]
[401399032,1768181854534,186.43,0.00030137,120]
[401399033,1768182015321,174.13625193,0.00030136,120]
[401399034,1768182271478,509.48,0.0003,120]
[401399035,1768182287627,500.0,0.00030136,120]
[401399036,1768182287864,500.0,0.00030136,120]
[401399037,1768182288139,500.0,0.00030136,120]
[401399038,1768182288448,489.35450958,0.00030136,120]
[401399043,1768182592656,207.96071313,0.00030136,120]
[401399054,1768182631685,-300.0,0.00013673,2]
[401399055,1768182631694,-151.0256709,0.00013673,2]
[401399056,1768182631702,-500.0,0.00013699,2]
[401399057,1768182631711,-500.0,0.00013699,2]
[401399058,1768182631720,-600.0,0.00014221,2]
[401399059,1768182631728,-321.28778123,0.00014247,2]
[401399060,1768182631737,-59.59989505,0.00014247,2]
[401399061,1768182631748,-706.87070486,0.00014247,2]
[401399073,1768182637842,-234.04920813,0.00014247,2]
[401399074,1768182637851,-584.02257496,0.00014768,2]
[401399075,1768182637948,-315.97742504,0.00014768,2]
[401399076,1768182637958,-1000.0,0.00015,2]
[401399077,1768182637967,-153.03250297,0.00015316,2]
[401399078,1768182637978,-1046.96749703,0.00015316,2]
[401399079,1768182637988,-178.21029166,0.00015673,2]
[401399080,1768182637997,-300.0,0.00015863,2]
[401399081,1768182638007,-1500.0,0.00015864,2]
[401399082,1768182638017,-300.0,0.00016308,2]
[401399083,1768182638031,-0.58859577,0.00016308,2]
[401399084,1768182638043,-299.41140423,0.00016308,2]
[401399085,1768182638053,-141.1000825,0.00016308,2]
[401399112,1768182639940,-158.8999175,0.00016308,2]
[401399114,1768182639950,-144.6900825,0.00016308,2]
[401399640,1768182727515,500.0,0.00030136,120]
[401399641,1768182727740,505.32251645,0.00030136,120]
[401399781,1768183525089,296.497342,0.00030136,120]
[401399834,1768183831826,-628.49975623,0.00010553,7]
[401399836,1768183831838,-3265.29977793,0.00010553,7]
[401399837,1768183831848,-165.93490683,0.00010939,2]
[401399838,1768183831858,-504.0,0.00012281,2]
[401399840,1768183831868,-8241.79816703,0.00012282,7]
[401399841,1768183831877,-500.0,0.00012909,2]
[401399844,1768183831886,-500.0,0.00012909,2]
[401399846,1768183831896,-500.0,0.00012909,2]
[401399849,1768183831905,-500.0,0.00012909,2]
[401399852,1768183831914,-500.0,0.00012909,2]
[401399854,1768183831923,-500.0,0.00012909,2]
[401399856,1768183831932,-431.89780998,0.00012909,2]
[401399859,1768183831941,-166.36213689,0.00012909,2]
[401399862,1768183831950,-500.0,0.00012909,2]
[401399864,1768183831959,-500.0,0.00012909,2]
[401399865,1768183831969,-500.0,0.00012909,2]
[401399866,1768183831978,-500.0,0.00012909,2]
[401399868,1768183831987,-500.0,0.00012909,2]
[401399869,1768183831996,-500.0,0.00012909,2]
[401399870,1768183832005,-500.0,0.00012909,2]
[401399871,1768183832015,-598.72911275,0.00012909,2]
[401399872,1768183832024,-500.0,0.00012909,2]
[401399873,1768183832033,-500.0,0.00012909,2]
[401399874,1768183832042,-500.0,0.00012909,2]
[401399875,1768183832051,-300.0,0.00012912,2]
[401399876,1768183832060,-300.0,0.00012912,2]
[401399877,1768183832070,-300.0,0.00012912,2]
[401399878,1768183832079,-300.0,0.00012912,2]
[401399879,1768183832089,-300.0,0.00012912,2]
[401399880,1768183832098,-300.0,0.00012912,2]
[401399881,1768183832107,-300.0,0.00012912,2]
[401399882,1768183832116,-300.0,0.00012912,2]
[401399883,1768183832126,-300.0,0.00012912,2]
[401399884,1768183832135,-300.0,0.00012912,2]
[401399885,1768183832145,-300.0,0.00012912,2]
[401399886,1768183832155,-300.0,0.00012912,2]
[401399887,1768183832165,-300.0,0.00012912,2]
[401399888,1768183832174,-300.0,0.00012912,2]
[401399889,1768183832184,-300.0,0.00012912,2]
[401399890,1768183832194,-195.80319006,0.00012939,2]
[401399891,1768183832203,-600.0,0.00013169,2]
[401399892,1768183832213,-300.0,0.00013673,2]
[401399893,1768183832222,-150.16755282,0.00013699,2]
[401399894,1768183832232,-392.9582955,0.00013699,2]
[401399895,1768183832241,-150.11147602,0.00013973,2]
[401399896,1768183832251,-604.38133685,0.00014221,2]
[401399897,1768183832261,-720.0,0.00014486,2]
[401399898,1768183832271,-225.67147329,0.00014939,2]
[401399899,1768183832280,-321.0,0.00015,2]
[401399900,1768183832290,-800.0,0.00015068,2]
[401399901,1768183832300,-528.99514748,0.00015935,2]
[401399902,1768183832320,-335.00485252,0.00015935,2]
[401399903,1768183832329,-152.315126,0.00016,2]
[401399904,1768183832339,-1601.55437366,0.00016164,2]
[401399905,1768183832349,-155.5739919,0.0001635,2]
[401399906,1768183832359,-200.0,0.00016473,2]
[401399907,1768183832369,-179.1,0.00016551,2]
[401399908,1768183832379,-1000.0,0.00016744,2]
[401399909,1768183832392,-255.53975652,0.00016939,2]
[401399910,1768183832401,-1000.0,0.00017528,2]
[401399911,1768183832411,-200.17789835,0.00017842,2]
[401399912,1768183832421,-4066.4211898,0.00018225,2]
[401399913,1768183832430,-1780.06082,0.00018225,2]
[401399914,1768183832440,-11683.8951862,0.00018225,2]
[401399915,1768183832450,-291.2146172,0.00018225,2]
[401399916,1768183832459,-1295.4027141,0.00018225,2]
[401399917,1768183832469,-150.99115012,0.00018371,2]
[401399918,1768183832479,-151.55070247,0.00018371,2]
[401399919,1768183832490,-153.79395699,0.00018371,2]
[401399920,1768183832499,-150.40202801,0.00018508,2]
[401399921,1768183832507,-201.12540167,0.00018645,2]
[401399922,1768183832516,-173.87385589,0.000189,2]
[401399923,1768183832525,-303.10001603,0.000189,2]
[401399924,1768183832535,-303.10001603,0.000189,2]
[401399925,1768183832545,-150.97423782,0.00018919,2]
[401399926,1768183832555,-151.12930034,0.00018919,2]
[401399927,1768183832564,-152.35022643,0.00018919,2]
[401399928,1768183832574,-151.69152079,0.00018919,2]
[401399929,1768183832584,-152.94537205,0.00018919,2]
[401399930,1768183832594,-151.0,0.00018933,2]
[401399931,1768183832603,-151.0,0.00018933,2]
[401399932,1768183832612,-151.0,0.00018933,2]
[401399933,1768183832621,-500.0,0.00018933,2]
[401399934,1768183832631,-151.0,0.00018933,2]
[401399935,1768183832640,-151.0,0.00018933,2]
[401399936,1768183832649,-500.0,0.00018933,2]
[401399937,1768183832659,-151.0,0.00018933,2]
[401399938,1768183832669,-500.0,0.00018933,2]
[401399939,1768183832678,-151.0,0.00018933,2]
[401399940,1768183832688,-18314.80970781,0.00018933,2]
[401399944,1768183837939,-2714.43362457,0.00012909,2]
[401399945,1768183837995,-47285.56637543,0.00012909,2]
[401399946,1768183838004,-11685.19029219,0.00018933,2]
[401399947,1768183838013,-151.0,0.00018933,2]
[401399948,1768183838023,-500.0,0.00018933,2]
[401399949,1768183838032,-151.0,0.00018933,2]
[401399950,1768183838041,-151.0,0.00018933,2]
[401399952,1768183838050,-500.0,0.00018933,2]
[401399953,1768183838059,-151.0,0.00018933,2]
[401399954,1768183838068,-250.0,0.00018933,2]
[401399955,1768183838077,-151.0,0.00018933,2]
[401399956,1768183838086,-514.84070869,0.00018933,2]
[401399957,1768183838096,-500.0,0.00018933,2]
[401399958,1768183838105,-187.78006525,0.00018933,2]
[401399959,1768183838115,-151.0,0.00018933,2]
[401399960,1768183838125,-250.0,0.00018933,2]
[401399961,1768183838135,-151.0,0.00018933,2]
[401399962,1768183838145,-500.0,0.00018933,2]
[401399964,1768183838155,-151.0,0.00018933,2]
[401399966,1768183838164,-250.0,0.00018933,2]
[401399968,1768183838173,-151.0,0.00018933,2]
[401399969,1768183838182,-2487.15318209,0.00018933,2]
[401399971,1768183838193,-500.0,0.00018933,2]
[401399973,1768183838203,-151.0,0.00018933,2]
[401399974,1768183838212,-194.72792766,0.00018933,2]
[401399975,1768183838221,-250.0,0.00018933,2]
[401399976,1768183838230,-231.01973692,0.00018933,2]
[401399977,1768183838238,-151.0,0.00018933,2]
[401399978,1768183838247,-500.0,0.00018933,2]
[401399979,1768183838257,-201.93286099,0.00018933,2]
[401399980,1768183838266,-250.0,0.00018933,2]
[401399981,1768183838276,-500.0,0.00018933,2]
[401399982,1768183838285,-151.0,0.00018933,2]
[401399983,1768183838293,-209.40437684,0.00018933,2]
[401399984,1768183838302,-250.0,0.00018933,2]
[401399985,1768183838312,-500.0,0.00018933,2]
[401399986,1768183838321,-151.0,0.00018933,2]
[401399987,1768183838330,-217.15233878,0.00018933,2]
[401399988,1768183838340,-250.0,0.00018933,2]
[401399989,1768183838349,-500.0,0.00018933,2]
[401399991,1768183838359,-151.0,0.00018933,2]
[401399992,1768183838368,-225.18697532,0.00018933,2]
[401399993,1768183838378,-500.0,0.00018933,2]
[401399994,1768183838392,-151.0,0.00018933,2]
[401399995,1768183838401,-233.51889341,0.00018933,2]
[401399996,1768183838410,-500.0,0.00018933,2]
[401399997,1768183838418,-151.0,0.00018933,2]
[401399998,1768183838428,-242.15909246,0.00018933,2]
[401399999,1768183838437,-151.0,0.00018933,2]
[401400000,1768183838447,-251.11897888,0.00018933,2]
[401400001,1768183838457,-260.4103811,0.00018933,2]
[401400002,1768183838466,-270.0455652,0.00018933,2]
[401400003,1768183838475,-280.03725112,0.00018933,2]
[401400004,1768183838484,-250.0,0.00018933,2]
[401400005,1768183838493,-290.39862941,0.00018933,2]
[401400006,1768183838503,-236.13774026,0.00018933,2]
[401400007,1768183838513,-301.1433787,0.00018933,2]
[401400008,1768183838522,-285.40803975,0.00018939,2]
[401400009,1768183838531,-304.04513063,0.00019089,2]
[401400010,1768183838540,-208.10940688,0.00019178,2]
[401400011,1768183838549,-163.79,0.000192,2]
[401400012,1768183838558,-164.29,0.000192,2]
[401400013,1768183838679,-167.75,0.000192,2]
[401400014,1768183838689,-1000.0,0.00019281,2]
[401400015,1768183838700,-244.0,0.00019281,2]
[401400016,1768183838709,-5000.0,0.0001948,2]
[401400017,1768183838719,-31110.0,0.00019481,2]
[401400018,1768183838728,-533.88981491,0.00019481,2]
[401400019,1768183838737,-2579.17784983,0.00019481,2]
[401400020,1768183838747,-500.0,0.00019988,2]
[401400021,1768183838759,-375.74506744,0.00019988,2]
[401400022,1768183838769,-500.0,0.00019988,2]
[401400023,1768183838779,-500.0,0.00019988,2]
[401400024,1768183838789,-500.0,0.00019988,2]
[401400025,1768183838799,-500.0,0.00019988,2]
[401400026,1768183838809,-500.0,0.00019988,2]
[401400027,1768183838819,-500.0,0.00019988,2]
[401400028,1768183838828,-500.0,0.00019988,2]
[401400029,1768183838837,-500.0,0.00019988,2]
[401400030,1768183838847,-500.0,0.00019988,2]
[401400031,1768183838856,-500.0,0.00019988,2]
[401400032,1768183838866,-500.0,0.00019988,2]
[401400033,1768183838875,-500.0,0.00019988,2]
[401400034,1768183838885,-500.0,0.00019988,2]
[401400035,1768183838894,-224.45499599,0.00019988,2]
[401400036,1768183838904,-500.0,0.00019988,2]
[401400037,1768183838914,-500.0,0.00019988,2]
[401400038,1768183838924,-500.0,0.00019988,2]
[401400039,1768183838934,-500.0,0.00019988,2]
[401400040,1768183838944,-500.0,0.00019988,2]
[401400041,1768183838953,-500.0,0.00019988,2]
[401400042,1768183838963,-357.1184972,0.00019988,2]
[401400043,1768183838972,-500.0,0.00019988,2]
[401400044,1768183838982,-500.0,0.00019988,2]
[401400045,1768183838991,-500.0,0.00019988,2]
[401400046,1768183839000,-450.0,0.00019988,2]
[401400047,1768183839010,-9966.61994442,0.0002,2]
[401400048,1768183839019,-151.65828913,0.0002,2]
[401400049,1768183839030,-32261.07,0.00020029,2]
[401400050,1768183839040,-553.64373807,0.00020029,2]
[401400051,1768183839055,-2674.60743027,0.00020029,2]
[401400052,1768183839064,-597.6,0.00020158,2]
[401400053,1768183839073,-4066.4211898,0.00020165,2]
[401400054,1768183839083,-1041.66666667,0.00020357,2]
[401400055,1768183839092,-291.2146172,0.00020393,2]
[401400056,1768183839102,-22842.79611483,0.00020577,2]
[401400057,1768183839112,-574.12855637,0.00020577,2]
[401400058,1768183839122,-2773.56790519,0.00020577,2]
[401400059,1768183839132,-1780.06082,0.00020698,2]
[401400060,1768183839141,-297.0,0.00020758,2]
[401400061,1768183839151,-375.0,0.00020935,2]
[401400062,1768183839166,-315.27632298,0.00020939,2]
[401400063,1768183839179,-151.0,0.0002099,2]
[401400064,1768183839188,-151.0,0.0002099,2]
[401400065,1768183839198,-100000.0,0.0002099,2]
[401400066,1768183839207,-180.510278,0.0002099,2]
[401400067,1768183839216,-180.510278,0.0002099,2]
[401400068,1768183839226,-180.510278,0.0002099,2]
[401400069,1768183839235,-180.510278,0.0002099,2]
[401400070,1768183839244,-151.0,0.0002099,2]
[401400071,1768183839253,-153.187876,0.00020999,2]
[401400072,1768183839263,-3324.29,0.00021,2]
[401400073,1768183839273,-595.37131296,0.00021125,2]
[401400074,1768183839282,-2876.18991768,0.00021125,2]
[401400075,1768183839292,-454.0,0.00021128,2]
[401400076,1768183839303,-151.0,0.000212,3]
[401400077,1768183839314,-1000.0,0.00021209,10]
[401400078,1768183839325,-492.0,0.00021209,10]
[401400079,1768183839335,-597.6,0.00021295,2]
[401400080,1768183839345,-151.0,0.000213,4]
[401400081,1768183839356,-151.0,0.000215,3]
[401400082,1768183839366,-778.0,0.000215,2]
[401400083,1768183839376,-151.0,0.000216,3]
[401400084,1768183839389,-151.0,0.000216,4]
[401400085,1768183839399,-617.40005154,0.00021673,2]
[401400086,1768183839409,-2982.60894464,0.00021673,2]
[401400087,1768183839419,-151.0,0.000218,3]
[401400088,1768183839430,-151.0,0.000218,4]
[401400090,1768183839440,-5888.0,0.00021828,2]
[401400092,1768183839449,-262.111459,0.00021828,2]
[401400094,1768183839462,-262.111459,0.00021828,2]
[401400096,1768183839471,-262.111459,0.00021828,2]
[401400098,1768183839480,-262.111459,0.00021828,2]
[401400099,1768183839489,-5000.0,0.0002187,2]
[401400100,1768183839499,-306.42,0.00021918,5]
[401400101,1768183839510,-281.72736,0.00021918,2]
[401400102,1768183839519,-151.0,0.00021918,2]
[401400103,1768183839529,-151.636506,0.00021918,2]
[401400104,1768183839539,-213.287549,0.00021918,2]
[401400105,1768183839549,-151.0,0.00021918,2]
[401400106,1768183839558,-151.0,0.00021918,2]
[401400107,1768183839567,-151.0,0.00021918,2]
[401400108,1768183839577,-151.0,0.00021918,2]
[401400109,1768183839586,-151.0,0.00021918,2]
[401400110,1768183839596,-151.0,0.00021918,2]
[401400111,1768183839606,-151.0,0.00021918,2]
[401400112,1768183839615,-151.0,0.00021918,2]
[401400113,1768183839625,-216.477355,0.00021918,2]
[401400114,1768183839635,-216.477355,0.00021918,2]
[401400115,1768183839644,-216.477355,0.00021918,2]
[401400116,1768183839654,-216.477355,0.00021918,2]
[401400117,1768183839663,-162.607111,0.00021918,2]
[401400118,1768183839672,-400.019935,0.00021918,2]
[401400119,1768183839682,-400.019935,0.00021918,2]
[401400120,1768183839691,-400.019935,0.00021918,2]
[401400121,1768183839701,-400.019935,0.00021918,2]
[401400122,1768183839711,-151.0,0.00021918,2]
[401400123,1768183839721,-820.742298,0.00021918,2]
[401400124,1768183839730,-820.742298,0.00021918,2]
[401400125,1768183839739,-820.742298,0.00021918,2]
[401400126,1768183839748,-151.0,0.00021918,2]
[401400127,1768183839757,-820.742298,0.00021918,2]
[401400128,1768183839767,-151.0,0.00021918,2]
[401400129,1768183839775,-151.0,0.00021918,2]
[401400130,1768183839785,-158.028197,0.00021918,2]
[401400131,1768183839794,-322.640639,0.00021918,2]
[401400132,1768183839803,-322.640639,0.00021918,2]
[401400133,1768183839812,-322.640639,0.00021918,2]
[401400134,1768183839822,-322.640639,0.00021918,2]
[401400135,1768183839831,-151.0,0.00021918,2]
[401400136,1768183839841,-151.0,0.00021918,2]
[401400137,1768183839851,-151.0,0.00021918,2]
[401400138,1768183839861,-583.088819,0.00021918,2]
[401400139,1768183839871,-583.088819,0.00021918,2]
[401400140,1768183839880,-151.0,0.00021918,2]
[401400142,1768183839890,-583.088819,0.00021918,2]
[401400144,1768183839899,-151.0,0.00021918,2]
[401400146,1768183839908,-583.088819,0.00021918,2]
[401400148,1768183839917,-151.0,0.00021918,2]
[401400149,1768183839927,-151.0,0.00021918,2]
[401400150,1768183839936,-151.0,0.00021918,2]
[401400152,1768183839946,-151.0,0.00021918,2]
[401400153,1768183839955,-2949.471327,0.00021918,2]
[401400154,1768183839965,-5888.0,0.00021977,2]
[401400155,1768183839975,-200.0,0.00021987,2]
[401400156,1768183839984,-214680.17527718,0.00021988,2]
[401400168,1768183840090,-291.300155,0.00021988,2]
[401400170,1768183840101,-415.36916342,0.00021988,2]
[401400172,1768183840112,-954.50930635,0.00021988,2]
[401400174,1768183840122,-829.03730397,0.00021988,2]
[401400176,1768183840133,-832.12920319,0.00021988,2]
[401400178,1768183840144,-1194.248208,0.00021988,2]
[401400477,1768183844080,-2305.70450511,0.00021888,2]
[401400519,1768183845871,-626.68866262,0.00021888,2]
[401400520,1768183845883,-2650.97998544,0.00021888,2]
[401400522,1768183845892,-2949.471327,0.00021918,2]
[401400524,1768183845902,-2949.471327,0.00021918,2]
[401400526,1768183845911,-2949.471327,0.00021918,2]
[401400528,1768183845920,-9165.79663356,0.00021988,2]
[401400684,1768183980104,300.0,0.00030137,120]
[401400685,1768183989264,272.0,8.06e-05,2]
[401400725,1768184318740,205.93542465,0.00030137,120]
[401400845,1768184839004,447.65,0.00030137,120]
[401400859,1768184905613,158.75744881,0.00025,120]
[401400861,1768184910644,211.17677788,0.0003,120]
[401400863,1768184918472,300.0,0.0003,120]
[401400868,1768184951417,2179.72,0.00030136,120]
[401400869,1768184951663,2179.72,0.00030136,120]
[401400870,1768184951907,2179.72,0.00030136,120]
[401400871,1768184952154,2179.72,0.00030136,120]
[401400872,1768184952405,2179.72,0.00030136,120]
[401400873,1768184952643,2179.72,0.00030136,120]
[401400874,1768184952908,2179.72,0.00030136,120]
[401400875,1768184953158,2179.72,0.00030136,120]
[401400877,1768184953408,2179.72,0.00030136,120]
[401400878,1768184953667,2179.72,0.00030136,120]
[401400879,1768184953905,2179.72,0.00030136,120]
[401400880,1768184954836,2179.72,0.00030136,120]
[401400881,1768184955071,2179.72,0.00030136,120]
[401400882,1768184955324,2179.72,0.00030136,120]
[401400883,1768184955724,2179.72,0.00030136,120]
[401400884,1768184955947,2179.72,0.00030136,120]
[401400885,1768184956181,2179.72,0.00030136,120]
[401400886,1768184956420,2179.72,0.00030136,120]
[401400887,1768184956662,2179.72,0.00030136,120]
[401400888,1768184956915,2179.72,0.00030136,120]
[401400889,1768184957148,2179.72,0.00030136,120]
[401400890,1768184957384,2179.72,0.00030136,120]
[401400891,1768184957662,2179.72,0.00030136,120]
[401400892,1768184957898,2179.80399353,0.00030136,120]
[401400907,1768185005003,164.98,5e-05,2]
[401400948,1768185032143,-164.98,8.6e-05,2]
[401400949,1768185032152,-164.98,0.000122,2]
[401400950,1768185032161,-39.72140551,0.00013479,2]
[401400951,1768185032172,-119.12918014,0.00013479,2]
[401400952,1768185032181,-612.0,0.00013479,2]
[401400953,1768185032191,-154.44,0.00013646,2]
[401400954,1768185032200,-300.0,0.00013673,2]
[401400955,1768185032210,-300.0,0.00013995,2]